bitfinex/quotes_ETHUSD_20240715
["timestamp","ask_amount","ask_price","bid_price","bid_amount"]
[1721005213761,2.3868,3289.0,3287.5,2.563]
[1721005213981,2.46283894,3288.9,3287.5,2.563]
[1721005214306,2.46283894,3288.9,3287.1,2.563]
[1721005214460,2.46283894,3288.9,3287.2,3.0]
[1721005214656,2.87259116,3288.9,3287.2,3.0]
[1721005214997,2.87259116,3288.9,3286.8,2.73822]
[1721005214998,2.256,3288.7,3286.9,3.0]
[1721005215169,2.256,3288.5,3286.9,5.73814]
[1721005215370,2.256,3288.3,3287.0,2.73804]
[1721005215569,2.256,3288.1,3287.0,2.73804]
[1721005215760,0.07604903,3288.0,3286.9,3.0]
[1721005215955,2.4476,3287.8,3286.9,3.0]
[1721005216167,0.07605048,3287.7,3286.9,3.0]
[1721005216372,2.4476,3287.6,3286.5,5.73845]
[1721005216570,0.07605532,3287.5,3286.3,2.563]
[1721005216767,0.07605532,3287.5,3286.2,7.2792]
[1721005216768,2.3964,3287.4,3286.2,7.2792]
[1721005217095,2.3964,3287.2,3285.9,2.563]
[1721005217300,2.3964,3287.0,3284.8,2.73988]
[1721005217516,2.3964,3286.8,3284.6,2.74002]
[1721005217799,2.2555,3286.6,3284.8,2.73989]
[1721005218012,2.2555,3286.5,3285.0,2.73971]
[1721005218204,0.23315953,3286.4,3285.0,2.73971]
[1721005218357,3.23315953,3286.4,3285.0,2.73971]
[1721005218562,3.23315953,3286.4,3285.1,2.73964]
[1721005218794,0.23315953,3286.4,3285.1,2.73964]
[1721005218999,0.23315953,3286.4,3285.3,2.563]
[1721005219206,0.24588318,3286.3,3285.3,2.563]
[1721005219724,2.2256723,3286.5,3285.4,2.80023719]
[1721005219953,2.2256723,3286.5,3285.3,5.30245]
[1721005220239,0.07608306,3286.4,3285.3,2.563]
[1721005220386,0.23017554,3286.3,3285.3,2.563]
[1721005220592,2.2256723,3286.5,3285.5,2.73927]
[1721005220821,2.2256723,3286.5,3285.7,2.73911]
[1721005220989,2.2256723,3286.5,3285.4,2.73937]
[1721005221431,2.2256723,3286.5,3285.5,2.73929]
[1721005221629,0.22256723,3286.4,3285.5,2.73929]
[1721005222003,2.2256723,3286.5,3285.6,2.73921]
[1721005222420,0.31878374,3286.4,3285.6,2.73921]
[1721005223836,0.31878374,3286.4,3285.8,2.73905]
[1721005224396,0.31878374,3286.4,3285.4,2.73939]
[1721005225017,0.31878374,3286.4,3285.5,2.73929]
[1721005225329,0.2544456,3286.3,3285.5,2.73929]
[1721005225492,0.31878374,3286.4,3285.5,2.73929]
[1721005225695,0.31878374,3286.4,3285.3,5.30247]
[1721005225696,0.31878374,3286.4,3285.6,2.73922]
[1721005227129,0.31878374,3286.4,3285.3,5.30247]
[1721005227535,0.31878374,3286.4,3285.5,2.73924]
[1721005227832,0.31878374,3286.4,3285.6,2.73922]
[1721005228002,0.57322934,3286.4,3285.6,2.73922]
[1721005229113,0.31878374,3286.4,3285.7,2.4973]
[1721005229319,2.2662,3287.6,3286.7,1.831]
[1721005229519,2.2662,3287.6,3287.3,2.563]
[1721005229753,2.3345,3289.0,3287.3,2.563]
[1721005229926,0.2653283,3288.9,3287.5,2.73764]
[1721005230130,0.2653283,3288.9,3287.6,2.73754]
[1721005230929,0.2653283,3288.9,3287.9,2.7373]
[1721005231251,0.2653283,3288.9,3287.6,2.563]
[1721005231427,0.07602642,3288.8,3287.6,5.30055]
[1721005231628,0.2653283,3288.9,3287.7,2.73746]
[1721005231834,0.25998283,3288.8,3287.8,2.73733]
[1721005233061,0.25998283,3288.8,3287.9,2.7373]
[1721005236263,0.25998283,3288.8,3288.0,2.7372]
[1721005236963,2.3345,3289.0,3287.6,2.563]
[1721005236964,0.07602732,3289.4,3287.9,2.4704]
[1721005237258,2.3558,3289.6,3288.6,2.563]
[1721005237445,0.07601351,3289.5,3288.6,2.563]
[1721005237627,0.24318135,3289.4,3288.6,2.563]
[1721005238170,0.07601349,3289.3,3288.6,2.563]
[1721005238372,0.24318135,3289.4,3288.4,2.73688]
[1721005238535,0.01697793,3289.3,3288.2,2.563]
[1721005238736,2.2906,3289.3,3288.3,3.0]
[1721005238961,0.25337814,3289.2,3288.3,3.0]
[1721005240151,0.27035607,3289.2,3288.3,3.0]
[1721005240677,0.25337814,3289.2,3288.3,3.0]
[1721005241084,0.27035607,3289.2,3288.3,3.0]
[1721005242141,0.25337814,3289.2,3288.3,3.0]
[1721005242360,0.25439781,3289.1,3288.3,3.0]
[1721005245007,0.25439781,3289.1,3287.8,9.8422]
[1721005245167,2.467,3289.0,3287.8,2.563]
[1721005245364,0.01697793,3288.9,3287.8,2.563]
[1721005245674,0.01697793,3288.9,3287.8,5.30038]
[1721005245870,0.01697793,3288.9,3287.8,2.563]
[1721005246085,0.24839779,3288.8,3287.8,2.563]
[1721005246397,2.3537,3288.6,3287.8,2.563]
[1721005249199,0.01697793,3288.5,3287.8,2.563]
[1721005250102,2.3537,3288.6,3287.8,2.563]
[1721005254025,2.37067793,3288.6,3287.8,2.563]
[1721005254319,0.23706779,3288.5,3287.8,2.563]
[1721005254519,0.01697793,3288.4,3287.8,2.563]
[1721005255221,2.3522772,3288.3,3287.4,5.563]
[1721005257020,2.3522772,3288.3,3287.4,2.563]
[1721005259339,2.3522772,3288.3,3287.0,10.2792]
[1721005259495,3.0,3289.1,3286.6,1.831]
[1721005259496,2.36817793,3288.2,3286.6,1.831]
[1721005259696,2.3346,3288.0,3286.6,1.831]
[1721005259942,2.35157793,3288.0,3286.2,10.01786]
[1721005260243,2.35157793,3288.0,3286.1,2.563]
[1721005260244,2.3346,3288.0,3287.0,2.738]
[1721005260535,2.3346,3288.0,3286.9,2.563]
[1721005260754,0.25714178,3287.9,3286.9,2.563]
[1721005261193,2.3346,3288.0,3287.3,5.30074]
[1721005261393,2.3346,3288.0,3287.3,2.563]
[1721005262391,2.3346,3288.0,3287.0,3.0]
[1721005262392,2.3346,3288.0,3287.0,5.73805]
[1721005262825,2.2906,3288.4,3287.6,2.73755]
[1721005263027,2.2906,3288.4,3287.7,0.06082326]
[1721005263325,2.2906,3288.4,3287.7,5.64113959]
[1721005263527,2.2906,3288.4,3287.8,0.06082289]
[1721005263729,2.2906,3289.0,3287.8,0.06082289]
[1721005265129,2.2906,3289.0,3288.0,2.73715]
[1721005265716,2.2906,3289.0,3288.1,5.30008]
[1721005266031,2.2906,3289.0,3288.2,0.06081636]
[1721005266496,2.2906,3289.0,3288.3,2.73696]
[1721005266839,2.2906,3289.0,3288.1,5.30012]
[1721005267131,2.2906,3289.0,3288.2,2.73705]
[1721005267490,2.2906,3289.0,3288.2,2.79786388]
[1721005267694,2.2906,3289.0,3288.2,2.73705]
[1721005267901,2.51966,3289.0,3288.2,2.73705]
[1721005268528,2.2906,3289.0,3288.2,1.831]
[1721005268741,2.3111,3289.4,3288.6,2.73671]
[1721005269703,2.3111,3289.4,3288.8,2.73652]
[1721005270314,0.31857031,3289.5,3288.9,2.7364]
[1721005270512,2.3271,3290.3,3288.9,2.7364]
[1721005270747,0.31852161,3290.2,3288.9,2.7364]
[1721005271031,0.31852161,3290.2,3289.0,2.563]
[1721005271398,0.01697793,3290.1,3289.0,2.563]
[1721005271947,0.31852161,3290.2,3288.9,2.7364]
[1721005272109,0.26456216,3290.1,3288.9,2.7364]
[1721005273728,0.26456216,3290.1,3289.0,2.73638]
[1721005276929,0.26456216,3290.1,3289.0,2.73632]
[1721005277133,0.31852161,3290.2,3289.0,2.73632]
[1721005277134,0.31852161,3290.2,3289.2,2.73621]
[1721005280847,0.31852161,3290.2,3289.3,2.4239]
[1721005281049,2.378,3291.9,3290.1,2.73545]
[1721005281226,0.3184669,3291.4,3290.8,2.563]
[1721005281422,2.378,3291.9,3290.8,2.563]
[1721005281651,0.2378,3291.8,3290.8,2.563]
[1721005282346,0.2378,3291.8,3291.0,2.73471]
[1721005283023,0.2378,3291.8,3290.8,2.563]
[1721005283229,0.2378,3291.8,3290.4,8.2982]
[1721005283431,0.2378,3291.8,3290.5,2.73513]
[1721005283643,0.29341987,3291.7,3290.5,2.73513]
[1721005283838,0.29341987,3291.7,3290.4,5.563]
[1721005284038,2.3218,3291.8,3290.0,5.29855]
[1721005284240,2.3218,3291.8,3290.1,5.73547]
[1721005284241,2.8718,3291.8,3290.1,5.73547]
[1721005284464,2.3218,3291.6,3290.0,2.563]
[1721005284766,2.8718,3291.5,3290.0,2.563]
[1721005284932,3.0,3291.4,3290.0,2.563]
[1721005285126,1.13718,3291.3,3290.0,2.563]
[1721005285954,0.58718,3291.3,3290.4,2.563]
[1721005286125,2.3218,3291.5,3290.4,2.563]
[1721005292483,2.3218,3291.5,3290.7,2.7349]
[1721005292797,2.3907,3292.0,3290.8,2.73488]
[1721005292996,0.23907,3291.9,3290.8,2.73488]
[1721005293310,2.3907,3292.0,3290.8,5.29788]
[1721005294429,2.3907,3292.0,3290.9,2.7348]
[1721005294913,2.3907,3292.0,3290.8,2.563]
[1721005295099,2.3907,3292.0,3290.8,5.29788]
[1721005295266,2.3907,3292.0,3290.5,3.0]
[1721005295267,2.3907,3292.0,3290.5,5.73509]
[1721005295474,0.23907,3291.9,3290.5,5.73509]
[1721005296505,0.23907,3291.9,3290.6,2.73506]
[1721005296670,0.23907,3291.9,3290.7,3.0]
[1721005297363,2.3907,3292.0,3290.7,3.0]
[1721005297972,2.3907,3292.0,3290.8,2.73487]
[1721005298511,2.3907,3292.0,3290.7,3.0]
[1721005304742,2.3907,3292.0,3289.9,5.162]
[1721005304743,2.4846,3291.8,3290.1,2.73542]
[1721005305039,2.3885,3291.6,3290.2,3.0]
[1721005305606,2.3885,3291.6,3290.1,3.0]
[1721005305784,2.3885,3291.6,3290.1,5.73547]
[1721005307054,2.3885,3291.6,3290.5,2.73507]
[1721005307496,2.3885,3291.6,3290.6,5.73505]
[1721005307991,2.3885,3291.6,3290.7,2.73497]
[1721005308190,2.3885,3291.6,3290.8,3.0]
[1721005308429,2.3885,3291.6,3290.8,5.73488]
[1721005310790,0.3183755,3292.2,3291.0,2.73471]
[1721005311221,0.3183755,3292.2,3291.2,2.7345]
[1721005311440,0.3183755,3292.2,3291.3,0.27345]
[1721005312040,2.4917,3292.3,3291.3,0.33420337]
[1721005312393,2.4917,3292.3,3291.4,2.73434]
[1721005313383,2.4917,3292.3,3291.5,0.06075336]
[1721005313536,0.31834086,3292.6,3291.8,1.831]
[1721005313849,2.255,3293.0,3291.9,0.1831]
[1721005314323,0.01697793,3292.9,3291.9,0.1831]
[1721005314490,0.01697793,3292.9,3291.3,5.73443]
[1721005314491,2.2846,3292.8,3291.3,5.73443]
[1721005314687,2.30157793,3292.8,3291.3,5.73443]
[1721005315100,2.2846,3292.6,3291.3,3.0]
[1721005315327,0.01697793,3292.5,3290.9,3.0]
[1721005315626,0.01697793,3292.5,3291.0,2.73467]
[1721005315797,0.01697793,3292.5,3290.9,3.0]
[1721005315798,0.24713572,3292.5,3291.1,5.73464]
[1721005315993,0.24713572,3292.5,3291.2,3.0]
[1721005316735,2.2934,3292.4,3291.2,3.0]
[1721005316906,0.01697793,3292.3,3291.1,3.0]
[1721005318147,2.2934,3292.4,3291.1,5.73464]
[1721005319062,0.01697793,3292.3,3291.1,3.0]
[1721005319226,0.01697793,3292.3,3291.0,5.73472]
[1721005319909,2.2934,3292.4,3291.0,5.73472]
[1721005320109,0.01697793,3292.3,3291.0,3.0]
[1721005320343,2.2934,3292.4,3290.9,3.0]
[1721005320613,2.31037793,3292.4,3290.9,5.7348]
[1721005320944,2.31037793,3292.4,3290.9,3.0]
[1721005320945,2.563,3292.1,3290.9,3.0]
[1721005321107,2.50687793,3292.0,3290.0,10.0155]
[1721005321307,2.4899,3291.4,3290.1,2.73545]
[1721005321548,2.4899,3291.4,3290.0,2.7355]
[1721005321849,2.4899,3291.4,3289.9,2.73561]
[1721005321850,5.0529,3291.4,3289.9,2.73561]
[1721005322517,5.0529,3291.4,3290.0,3.0]
[1721005323214,2.4899,3291.4,3290.2,2.73531]
[1721005323441,2.4899,3291.4,3290.3,3.0]
[1721005323622,2.4899,3291.4,3290.4,0.06077088]
[1721005323828,2.4899,3291.4,3290.5,1.831]
[1721005324134,2.4899,3291.4,3290.6,2.73504]
[1721005324861,2.4899,3291.4,3290.5,7.56611]
[1721005325887,2.4899,3291.4,3290.5,3.0]
[1721005326017,2.4899,3291.4,3290.2,3.0]
[1721005326357,2.4899,3291.4,3290.2,5.73537]
[1721005327414,2.4899,3291.4,3290.3,0.06077109]
[1721005327615,0.01697793,3292.2,3291.1,2.73456]
[1721005327845,2.4623,3292.3,3291.2,3.0]
[1721005328045,2.4623,3292.3,3291.0,3.0]
[1721005328350,2.4623,3292.3,3290.0,1.25878116]
[1721005328351,2.4623,3292.1,3290.8,3.0]
[1721005328517,2.2749,3291.9,3290.6,3.0]
[1721005328717,2.81092779,3292.0,3290.6,3.0]
[1721005329047,2.29187793,3291.9,3290.4,3.0]
[1721005329410,2.29187793,3291.9,3290.2,4.831]
[1721005329809,2.29187793,3291.9,3290.3,2.7353]
[1721005330045,2.4057,3291.7,3289.6,0.63585411]
[1721005330223,2.4057,3291.7,3289.5,2.73595]
[1721005330224,2.4057,3291.0,3289.5,2.73595]
[1721005330425,2.4057,3291.0,3289.6,2.73589]
[1721005330647,2.4057,3291.0,3289.9,2.73562]
[1721005330850,2.4057,3291.0,3289.7,2.73574]
[1721005331053,2.4057,3291.0,3289.8,0.273574]
[1721005331451,2.4057,3291.0,3289.8,3.009294]
[1721005331750,2.4057,3291.0,3289.8,3.07007226]
[1721005331957,2.4057,3291.0,3289.9,5.73564]
[1721005332184,2.4057,3291.0,3290.1,2.73547]
[1721005332481,2.4057,3291.0,3290.2,6.07572971]
[1721005332687,2.4057,3291.0,3290.2,6.01495483]
[1721005333447,2.4057,3291.0,3290.4,2.73522]
[1721005333803,2.3541,3291.7,3290.5,0.06076989]
[1721005334089,2.3541,3291.7,3290.5,3.06076989]
[1721005334387,2.3541,3291.7,3290.8,2.73484]
[1721005334684,2.3541,3291.7,3291.0,2.73469]
[1721005334851,2.3541,3291.7,3291.1,3.06075788]
[1721005335182,2.3541,3291.7,3291.1,3.0]
[1721005336763,2.3541,3291.7,3290.9,1.831]
[1721005336963,2.3541,3291.7,3290.9,3.0]
[1721005337160,2.58951,3291.7,3290.5,1.831]
[1721005337572,2.58951,3291.7,3290.5,4.831]
[1721005337772,2.58951,3291.7,3290.5,7.56614]
[1721005337973,2.3541,3291.7,3290.5,7.56614]
[1721005338175,0.01697793,3291.6,3290.5,3.0]
[1721005338379,2.3541,3291.7,3290.2,3.0]
[1721005338574,2.3541,3291.7,3290.3,2.73529]
[1721005338764,2.3541,3291.7,3290.4,3.0]
[1721005338963,2.4486,3291.5,3290.4,3.0]
[1721005339172,2.4486,3291.5,3290.0,5.73555]
[1721005339491,2.4486,3291.5,3290.4,2.73521]
[1721005339693,2.4486,3291.5,3290.5,3.0]
[1721005340083,2.4486,3291.5,3290.3,3.0]
[1721005340287,2.3292,3291.3,3289.7,2.7358]
[1721005340486,0.26183793,3291.4,3289.5,2.73592]
[1721005340487,2.3292,3291.1,3289.5,2.73592]
[1721005340688,0.01697793,3291.0,3289.5,2.73592]
[1721005341675,0.01697793,3291.0,3289.4,1.831]
[1721005341876,2.4079,3290.9,3289.4,0.06078491]
[1721005342198,2.4079,3290.9,3289.4,2.79682491]
[1721005342375,2.64869,3290.9,3289.6,2.73589]
[1721005342679,2.64869,3290.9,3289.7,0.06078485]
[1721005343366,2.64869,3290.9,3289.7,3.06078485]
[1721005343801,2.64869,3290.9,3289.7,3.0]
[1721005344020,2.3308,3290.7,3288.8,2.73655]
[1721005344233,2.3308,3290.5,3288.6,2.73671]
[1721005344696,2.3308,3290.3,3288.6,2.73671]
[1721005344893,2.3308,3290.1,3288.6,2.73671]
[1721005345085,0.25175572,3290.0,3288.6,2.73671]
[1721005345290,0.23477779,3290.0,3288.7,2.73663]
[1721005345463,0.23477779,3290.0,3288.8,5.73655]
[1721005345667,2.3308,3290.1,3289.0,2.73633]
[1721005345907,2.3308,3290.1,3289.1,3.0]
[1721005346275,2.3308,3290.1,3288.9,3.0]
[1721005347098,0.01697793,3290.0,3288.9,3.0]
[1721005347312,0.01697793,3290.0,3288.5,2.73678]
[1721005347516,2.2707,3289.8,3288.6,0.273678]
[1721005347679,0.01697793,3289.7,3288.6,0.273678]
[1721005348009,2.2707,3289.6,3288.3,2.73697]
[1721005348511,2.3662,3289.4,3287.4,0.15209652]
[1721005348739,2.38317793,3289.3,3287.6,2.7375]
[1721005348876,2.38317793,3289.3,3287.7,0.27375]
[1721005348877,2.4305,3289.1,3287.7,0.27375]
[1721005349079,2.4305,3289.0,3287.1,2.563]
[1721005349479,2.4305,3289.0,3287.6,2.73755]
[1721005349680,2.4305,3289.0,3287.8,2.73737]
[1721005349988,2.4305,3289.0,3287.9,2.7373]
[1721005350311,2.4305,3289.0,3288.2,2.73704]
[1721005350611,2.4305,3289.0,3288.3,3.33451421]
[1721005350811,2.4305,3289.0,3288.4,2.73688]
[1721005351190,2.4868,3289.6,3288.6,2.73666]
[1721005351513,2.4868,3289.6,3288.3,3.273704]
[1721005351719,2.4868,3289.6,3288.3,6.07147374]
[1721005351889,2.4868,3289.6,3288.3,7.62876974]
[1721005352397,2.4868,3289.6,3288.3,3.0]
[1721005352617,2.4868,3289.6,3288.3,2.73696]
[1721005352792,2.4868,3289.6,3288.4,3.0]
[1721005353421,2.4868,3289.6,3288.5,0.06080935]
[1721005353715,2.4868,3289.6,3288.8,2.73655]
[1721005353915,2.4868,3289.6,3289.0,2.73632]
[1721005354082,2.4868,3289.6,3288.9,2.79727151]
[1721005354283,2.2607,3290.1,3289.2,2.73616]
[1721005354498,2.2607,3290.1,3289.3,3.06079391]
[1721005355087,2.2607,3290.1,3289.4,2.73605]
[1721005355291,2.2607,3290.1,3289.5,0.06079025]
[1721005355487,2.2607,3290.1,3289.5,2.79676025]
[1721005355796,2.2607,3290.1,3289.6,2.73582]
[1721005356106,2.2607,3290.1,3289.4,2.73604]
[1721005356306,2.2607,3290.1,3289.5,3.0]
[1721005356512,2.2607,3290.1,3289.3,3.0]
[1721005356732,0.01697793,3290.0,3288.9,5.73647]
[1721005358019,2.3154,3289.9,3288.0,2.73722]
[1721005358230,2.33237793,3289.8,3288.1,2.73708]
[1721005358389,2.31297793,3289.7,3288.1,2.73708]
[1721005358911,2.296,3289.7,3288.1,2.79789337]
[1721005359109,2.296,3289.7,3288.2,2.73705]
[1721005359308,2.296,3289.7,3288.3,0.06081331]
[1721005359631,2.31297793,3289.7,3288.1,2.73713]
[1721005359831,2.457,3289.5,3288.2,3.0]
[1721005360260,2.457,3289.5,3288.3,0.06081333]
[1721005360793,2.457,3289.5,3288.4,2.73687]
[1721005360995,2.457,3289.5,3288.6,2.73666]
[1721005361899,2.457,3289.5,3288.4,2.73687]
[1721005362255,0.2457,3289.4,3288.4,2.73687]
[1721005362608,0.2457,3289.4,3288.5,2.73678]
[1721005362830,2.457,3289.5,3288.6,2.79746464]
[1721005363001,2.457,3289.5,3288.6,2.73666]
[1721005363204,2.457,3289.5,3288.4,2.73687]
[1721005363406,2.457,3289.5,3288.5,5.73678]
[1721005363637,2.457,3289.5,3288.6,2.73671]
[1721005363840,2.457,3289.5,3288.6,2.79751459]
[1721005364038,2.457,3289.5,3288.6,2.73671]
[1721005365170,2.457,3289.5,3288.7,2.79742379]
[1721005365332,2.457,3289.5,3288.8,2.73651]
[1721005365755,2.457,3289.5,3288.9,2.73647]
[1721005366832,2.457,3289.5,3289.0,2.73638]
[1721005367032,2.457,3289.5,3289.1,0.06079858]
[1721005367737,2.457,3289.5,3289.0,2.73638]
[1721005367975,2.457,3289.5,3289.1,0.06079858]
[1721005369237,2.457,3289.5,3289.1,2.79709858]
[1721005369436,2.457,3289.5,3289.1,2.7363]
[1721005369660,2.457,3289.5,3288.9,2.73642]
[1721005369844,2.457,3289.5,3289.0,5.73637]
[1721005371678,2.457,3289.5,3289.0,3.0]
[1721005371860,2.457,3289.5,3288.7,5.73664]
[1721005372377,2.457,3289.5,3288.7,3.0]
[1721005372542,2.457,3289.5,3288.6,2.73672]
[1721005372744,2.457,3289.5,3288.7,3.0]
[1721005375670,2.3536,3289.3,3287.8,2.73736]
[1721005375882,2.3536,3289.3,3288.1,2.73713]
[1721005376743,2.3536,3289.1,3288.1,2.73713]
[1721005376944,0.01697793,3289.0,3288.2,3.0]
[1721005377244,2.3536,3289.1,3288.2,3.0]
[1721005377799,2.44527793,3289.6,3288.2,3.0]
[1721005377951,2.4283,3289.5,3288.0,3.0]
[1721005378294,2.4283,3289.5,3288.0,5.73721]
[1721005378295,2.44527793,3289.4,3288.0,5.73721]
[1721005378802,2.44527793,3289.4,3288.0,3.0]
[1721005378982,3.0362,3289.3,3287.6,2.73749]
[1721005379187,3.0362,3289.3,3287.4,1.831]
[1721005379188,2.4862,3289.1,3287.4,1.831]
[1721005379355,2.4862,3288.9,3287.6,2.73754]
[1721005380052,0.82454257,3289.3,3287.2,1.831]
[1721005380053,2.50317793,3288.8,3287.3,2.73778]
[1721005380254,2.3538,3288.6,3287.3,2.73778]
[1721005380453,2.3538,3288.4,3287.4,3.0]
[1721005380711,2.3538,3288.4,3287.2,5.73787]
[1721005380862,2.37077793,3288.4,3287.2,3.0]
[1721005381411,2.37077793,3288.4,3286.9,2.73812]
[1721005381556,2.37077793,3288.4,3286.9,2.73813]
[1721005381757,2.443,3288.2,3287.0,0.273813]
[1721005382655,2.443,3288.2,3287.0,3.011863]
[1721005383094,2.443,3288.2,3287.1,3.0]
[1721005383400,2.45997793,3288.2,3287.1,3.0]
[1721005383602,2.45997793,3288.2,3287.0,0.273813]
[1721005383756,2.4872,3288.0,3287.0,0.273813]
[1721005383957,2.50417793,3288.0,3287.0,0.273813]
[1721005384277,2.4872,3288.0,3287.0,0.273813]
[1721005384480,0.01697793,3287.9,3287.0,0.273813]
[1721005384811,0.01697793,3287.9,3286.3,1.831]
[1721005384812,2.40247793,3287.9,3286.3,1.831]
[1721005384992,2.40247793,3287.9,3286.2,3.0]
[1721005384993,2.3855,3287.9,3286.5,2.73846]
[1721005385680,0.31836708,3288.0,3286.5,2.73846]
[1721005385681,2.3666,3287.7,3286.5,2.73846]
[1721005385858,2.38357793,3287.6,3286.0,2.73884]
[1721005386063,2.3666,3287.4,3286.1,0.273884]
[1721005386262,2.38357793,3287.3,3286.1,3.273884]
[1721005386463,0.23835779,3287.5,3285.8,2.73905]
[1721005386464,2.3666,3287.1,3285.8,2.73905]
[1721005386704,2.3942,3286.9,3285.8,2.73905]
[1721005386867,2.3942,3286.9,3285.7,2.73912]
[1721005387463,0.01697793,3286.8,3285.5,2.7393]
[1721005387669,2.3835,3286.7,3285.5,2.7393]
[1721005387890,0.01697793,3286.6,3285.6,0.27393]
[1721005388306,2.62354779,3286.7,3285.7,2.73914]
[1721005388726,2.62354779,3286.7,3285.8,3.0]
[1721005389299,0.01697793,3286.6,3285.6,3.0]
[1721005390322,2.3272,3286.5,3285.6,3.0]
[1721005390507,2.3272,3286.5,3285.7,3.09999043]
[1721005390715,2.3272,3286.5,3286.0,2.73888]
[1721005390908,2.3272,3286.5,3286.1,0.06085498]
[1721005391210,3.0,3287.4,3286.2,2.7387]
[1721005391211,2.2744,3287.0,3286.2,2.7387]
[1721005391395,2.2744,3287.0,3286.3,2.79947095]
[1721005391596,2.2744,3287.0,3286.4,2.73853]
[1721005391811,2.2744,3287.0,3286.5,0.06084612]
[1721005391997,2.2744,3287.0,3286.6,2.73839]
[1721005392310,2.2744,3287.0,3286.4,2.73855]
[1721005393129,2.2744,3287.0,3286.1,1.831]
[1721005393312,2.2744,3287.0,3286.2,2.73872]
[1721005393633,2.2744,3287.0,3286.3,3.0]
[1721005393834,2.2744,3287.0,3286.3,5.73862]
[1721005394425,2.2744,3287.0,3286.4,2.73855]
[1721005394723,2.2744,3287.0,3286.4,2.7993976]
[1721005395128,2.2744,3287.0,3286.5,2.73846]
[1721005395330,2.4562,3287.9,3286.6,3.0]
[1721005395514,2.4562,3287.9,3286.3,4.831]
[1721005395704,2.4562,3287.9,3286.3,1.831]
[1721005396211,0.01697793,3287.8,3286.4,2.73851]
[1721005396410,2.4562,3287.7,3286.5,3.0]
[1721005396638,2.47317793,3287.7,3286.5,3.0]
[1721005396948,2.4562,3287.7,3286.5,5.73846]
[1721005397536,2.4562,3287.7,3286.6,2.73837]
[1721005397836,2.4562,3287.7,3286.7,3.0]
[1721005398041,0.24562,3287.6,3286.7,3.0]
[1721005399807,2.3134,3287.5,3286.7,3.0]
[1721005400337,2.3134,3287.5,3286.5,3.0]
[1721005400538,2.3134,3287.5,3286.5,5.73845]
[1721005401529,2.3134,3287.5,3286.5,3.0]
[1721005401878,2.2551,3287.3,3286.0,3.0]
[1721005402017,2.2551,3287.3,3285.6,4.831]
[1721005402216,2.2551,3287.3,3285.6,4.8918536]
[1721005402660,2.2551,3287.3,3286.0,2.73882]
[1721005402959,2.2551,3287.3,3286.1,3.0]
[1721005403128,2.3733,3287.1,3286.1,3.0]
[1721005404449,2.3733,3287.1,3286.0,3.0]
[1721005404619,0.01697793,3287.0,3286.0,3.0]
[1721005404824,0.01697793,3287.0,3285.4,2.73936]
[1721005404825,2.27167793,3287.0,3285.8,3.0]
[1721005405146,2.2547,3286.8,3285.6,2.73921]
[1721005405342,2.2547,3286.8,3285.7,3.0]
[1721005405660,2.2547,3286.8,3285.8,0.06086024]
[1721005406356,2.47107793,3286.7,3285.4,2.73938]
[1721005406525,2.4541,3286.5,3285.3,2.73947]
[1721005406724,2.4541,3286.3,3285.4,2.73939]
[1721005406949,2.4541,3286.3,3286.0,2.73884]
[1721005407264,2.4541,3287.4,3286.3,2.73862]
[1721005407422,2.4541,3287.4,3286.1,2.7388]
[1721005407423,2.4541,3287.4,3286.4,2.73855]
[1721005407619,0.24541,3287.3,3286.4,2.73855]
[1721005409957,2.4541,3287.4,3286.6,2.73838]
[1721005410158,2.4541,3287.4,3286.8,2.73816]
[1721005410526,2.4541,3287.4,3286.6,2.73839]
[1721005410739,2.4541,3287.4,3286.7,3.0]
[1721005410927,2.4541,3287.4,3286.5,5.73847]
[1721005411368,2.4541,3287.4,3286.8,2.73821]
[1721005413067,2.4541,3287.4,3286.6,2.73833]
[1721005413361,2.4541,3287.4,3286.7,3.0]
[1721005413658,2.4541,3287.4,3286.5,5.73844]
[1721005414060,2.4541,3287.4,3286.5,3.0]
[1721005414266,2.73134274,3287.4,3286.4,5.73853]
[1721005414657,2.4541,3287.4,3286.5,2.73845]
[1721005414964,2.4541,3287.4,3286.6,3.0]
[1721005415165,2.4541,3287.4,3286.1,1.831]
[1721005415166,2.4541,3287.4,3286.4,3.0]
[1721005415463,0.01697793,3287.3,3285.9,2.73895]
[1721005415668,0.31832744,3287.6,3285.9,2.73895]
[1721005415875,0.28843274,3287.5,3286.0,0.273895]
[1721005416032,0.28843274,3287.5,3286.1,0.06085488]
[1721005416229,0.28843274,3287.5,3286.0,0.273895]
[1721005417176,0.28843274,3287.5,3286.1,2.73875]
[1721005417331,0.28843274,3287.5,3286.0,3.273895]
[1721005417332,0.28843274,3287.5,3286.2,2.73872]
[1721005417532,0.36067602,3287.4,3286.3,0.06085278]
[1721005417857,0.28843274,3287.5,3286.4,2.73849]
[1721005418529,0.28843274,3287.5,3286.2,2.73866]
[1721005418530,2.338,3287.4,3286.2,2.73866]
[1721005418730,2.338,3287.4,3286.0,3.0]
[1721005418926,2.2673,3287.3,3286.0,5.73883]
[1721005419163,2.8173,3287.3,3286.0,3.0]
[1721005419377,2.2673,3287.1,3285.5,2.73925]
[1721005420180,2.4641,3286.8,3285.1,2.73959]
[1721005420470,2.4641,3286.8,3285.3,2.73946]
[1721005420776,2.4641,3286.8,3285.3,2.80032767]